[Event "*** SCC Grand Prix: Titled Tuesday Blitz"]
[Site "Chess.com"]
[Date "2020.07.07"]
[Round "10"]
[White "aNaartjieZA"]
[Black "secretsuperstar7"]
[Result "1-0"]
[WhiteElo "2515"]
[BlackElo "2144"]
[TimeControl "180+1"]
[EndTime "11:58:12 PDT"]
[Termination "aNaartjieZA won on time"]

1. e4 {[%clk 0:03:00.9]} 1... c5 {[%clk 0:02:59.5]} 2. Nf3 {[%clk 0:03:01]} 2...
d6 {[%clk 0:02:59.3]} 3. g3 {[%clk 0:03:01]} 3... Nc6 {[%clk 0:02:57.2]} 4. Bg2
{[%clk 0:03:00.9]} 4... Nf6 {[%clk 0:02:55.9]} 5. d3 {[%clk 0:03:00.7]} 5... g6
{[%clk 0:02:55.3]} 6. O-O {[%clk 0:03:01.2]} 6... Bg7 {[%clk 0:02:54.9]} 7. Re1
{[%clk 0:03:01.8]} 7... O-O {[%clk 0:02:53.1]} 8. c3 {[%clk 0:03:02.4]} 8... e5
{[%clk 0:02:45.8]} 9. a3 {[%clk 0:03:02.1]} 9... Ne8 {[%clk 0:02:41.6]} 10. b4
{[%clk 0:03:01.4]} 10... Nc7 {[%clk 0:02:38.5]} 11. Nbd2 {[%clk 0:02:57]} 11...
b6 {[%clk 0:02:35.9]} 12. Bb2 {[%clk 0:02:55.7]} 12... Ba6 {[%clk 0:02:35.1]}
13. c4 {[%clk 0:02:54.1]} 13... cxb4 {[%clk 0:02:30.5]} 14. axb4 {[%clk
0:02:53.8]} 14... Nxb4 {[%clk 0:02:30]} 15. Nf1 {[%clk 0:02:49.2]} 15... Nc6
{[%clk 0:02:24.6]} 16. Ne3 {[%clk 0:02:49.2]} 16... Bb7 {[%clk 0:02:22.5]} 17.
Ba3 {[%clk 0:02:46.3]} 17... Ne6 {[%clk 0:02:20.5]} 18. Nd5 {[%clk 0:02:44.6]}
18... Nc5 {[%clk 0:02:19.2]} 19. Rb1 {[%clk 0:02:34.8]} 19... Ne7 {[%clk
0:01:59.1]} 20. h4 {[%clk 0:02:14.1]} 20... Nxd5 {[%clk 0:01:53.4]} 21. exd5
{[%clk 0:02:14.2]} 21... h6 {[%clk 0:01:49.3]} 22. Bxc5 {[%clk 0:02:12.5]} 22...
dxc5 {[%clk 0:01:41.5]} 23. Nxe5 {[%clk 0:02:11.9]} 23... Qd6 {[%clk 0:01:38.5]}
24. f4 {[%clk 0:02:04.2]} 24... Rfe8 {[%clk 0:01:34.3]} 25. Nf3 {[%clk
0:02:03.9]} 25... Rad8 {[%clk 0:01:23.1]} 26. Rxe8+ {[%clk 0:02:01.1]} 26...
Rxe8 {[%clk 0:01:22.3]} 27. Qa4 {[%clk 0:02:00.8]} 27... Qb8 {[%clk 0:01:09.8]}
28. Re1 {[%clk 0:01:41.8]} 28... Bd4+ {[%clk 0:01:07]} 29. Kf1 {[%clk
0:01:41.5]} 29... Rxe1+ {[%clk 0:01:02.3]} 30. Kxe1 {[%clk 0:01:38.4]} 30... a6
{[%clk 0:00:51.9]} 31. Nxd4 {[%clk 0:01:34.6]} 31... cxd4 {[%clk 0:00:51.5]} 32.
Qd7 {[%clk 0:01:32.5]} 32... Kg7 {[%clk 0:00:42.4]} 33. Qe7 {[%clk 0:01:26.6]}
33... Qc8 {[%clk 0:00:33.4]} 34. d6 {[%clk 0:01:18.2]} 34... Qg4 {[%clk
0:00:06.7]} 35. Bxb7 {[%clk 0:00:24.4]} 35... Qxg3+ {[%clk 0:00:05.5]} 36. Ke2
{[%clk 0:00:23.9]} 36... Qh2+ {[%clk 0:00:03.6]} 37. Kd1 {[%clk 0:00:24]} 37...
Qg1+ {[%clk 0:00:03.1]} 38. Qe1 {[%clk 0:00:23.8]} 38... Qg4+ {[%clk 0:00:02.3]}
39. Kc2 {[%clk 0:00:23.6]} 1-0

[Event "*** SCC Grand Prix: Titled Tuesday Blitz"]
[Site "Chess.com"]
[Date "2020.07.07"]
[Round "10"]
[White "Mazetovic"]
[Black "Bigfish1995"]
[Result "0-1"]
[WhiteElo "2745"]
[BlackElo "3038"]
[TimeControl "180+1"]
[EndTime "11:58:16 PDT"]
[Termination "Bigfish1995 won by checkmate"]

1. e4 {[%clk 0:03:00.9]} 1... c6 {[%clk 0:02:39.3]} 2. d4 {[%clk 0:02:59.5]}
2... d5 {[%clk 0:02:39.8]} 3. exd5 {[%clk 0:02:57.8]} 3... cxd5 {[%clk
0:02:40.1]} 4. c3 {[%clk 0:02:58.2]} 4... Nc6 {[%clk 0:02:38.4]} 5. Bf4 {[%clk
0:02:57.3]} 5... g6 {[%clk 0:02:36.5]} 6. Nd2 {[%clk 0:02:53.9]} 6... f6 {[%clk
0:02:36.5]} 7. Bg3 {[%clk 0:02:51.1]} 7... Nh6 {[%clk 0:02:28.3]} 8. Ngf3 {[%clk
0:02:29.6]} 8... Bg7 {[%clk 0:02:18.8]} 9. Bd3 {[%clk 0:02:29.2]} 9... O-O
{[%clk 0:02:16.1]} 10. O-O {[%clk 0:02:22.8]} 10... Bf5 {[%clk 0:01:53]} 11. Bb5
{[%clk 0:02:05.8]} 11... Qb6 {[%clk 0:01:51.1]} 12. Qa4 {[%clk 0:02:02.7]} 12...
a6 {[%clk 0:01:50.2]} 13. Bxc6 {[%clk 0:02:02.4]} 13... bxc6 {[%clk 0:01:51.1]}
14. Nb3 {[%clk 0:02:00.2]} 14... Nf7 {[%clk 0:01:46.8]} 15. Rfe1 {[%clk
0:01:59.4]} 15... Rfe8 {[%clk 0:01:47]} 16. Qa5 {[%clk 0:01:58]} 16... Qb5
{[%clk 0:01:46]} 17. Nfd2 {[%clk 0:01:54.5]} 17... e5 {[%clk 0:01:45.2]} 18. a4
{[%clk 0:01:54.1]} 18... Qb7 {[%clk 0:01:41.9]} 19. dxe5 {[%clk 0:01:23.5]}
19... fxe5 {[%clk 0:01:40.4]} 20. Ra2 {[%clk 0:01:19.4]} 20... e4 {[%clk
0:01:31.4]} 21. Nc5 {[%clk 0:01:18]} 21... Qa7 {[%clk 0:01:31.9]} 22. Ndb3
{[%clk 0:01:11.9]} 22... Ne5 {[%clk 0:01:30]} 23. Bxe5 {[%clk 0:00:59]} 23...
Bxe5 {[%clk 0:01:28.4]} 24. Nd4 {[%clk 0:00:58.7]} 24... Bc7 {[%clk 0:01:23.3]}
25. Qb4 {[%clk 0:00:51.8]} 25... Bd6 {[%clk 0:01:15.6]} 26. Ndb3 {[%clk
0:00:47.4]} 26... e3 {[%clk 0:00:58.6]} 27. Rxe3 {[%clk 0:00:41.6]} 27... Rxe3
{[%clk 0:00:57.9]} 28. fxe3 {[%clk 0:00:42]} 28... Re8 {[%clk 0:00:51.5]} 29.
Qd4 {[%clk 0:00:40.6]} 29... Bc2 {[%clk 0:00:40.4]} 30. Ra1 {[%clk 0:00:37.8]}
30... Qb8 {[%clk 0:00:38.5]} 31. Nd2 {[%clk 0:00:32.3]} 31... Bxh2+ {[%clk
0:00:37]} 32. Kh1 {[%clk 0:00:32.6]} 32... Be5 {[%clk 0:00:36.1]} 33. Qh4 {[%clk
0:00:28.4]} 33... Qxb2 {[%clk 0:00:35.4]} 34. Rf1 {[%clk 0:00:27.4]} 34... Qxc3
{[%clk 0:00:34.8]} 35. Nd7 {[%clk 0:00:25.8]} 35... Bg7 {[%clk 0:00:25.9]} 36.
Nf3 {[%clk 0:00:23]} 36... Qc4 {[%clk 0:00:19.2]} 37. Nf6+ {[%clk 0:00:20.7]}
37... Bxf6 {[%clk 0:00:19]} 38. Qxf6 {[%clk 0:00:21.1]} 38... Qxf1+ {[%clk
0:00:19.6]} 39. Kh2 {[%clk 0:00:21.7]} 39... Be4 {[%clk 0:00:19.8]} 40. Qxc6
{[%clk 0:00:21.2]} 40... Rf8 {[%clk 0:00:19.5]} 41. Qe6+ {[%clk 0:00:21]} 41...
Kg7 {[%clk 0:00:17.8]} 42. Qe5+ {[%clk 0:00:21.3]} 42... Kf7 {[%clk 0:00:15.7]}
43. Ng5+ {[%clk 0:00:19.1]} 43... Kg8 {[%clk 0:00:15.9]} 44. Qe6+ {[%clk
0:00:19.6]} 44... Kh8 {[%clk 0:00:16.5]} 45. Qd7 {[%clk 0:00:18.3]} 45... Qxg2#
{[%clk 0:00:16.4]} 0-1

[Event "*** SCC Grand Prix: Titled Tuesday Blitz"]
[Site "Chess.com"]
[Date "2020.07.07"]
[Round "10"]
[White "Artyom_ChessMate"]
[Black "Rodchenkov_Vitalij"]
[Result "1-0"]
[WhiteElo "2495"]
[BlackElo "2360"]
[TimeControl "180+1"]
[EndTime "11:58:16 PDT"]
[Termination "Artyom_ChessMate won by resignation"]

1. e4 {[%clk 0:03:00.9]} 1... c5 {[%clk 0:02:59.4]} 2. Nc3 {[%clk 0:03:00.1]}
2... Nc6 {[%clk 0:02:48.6]} 3. Bb5 {[%clk 0:02:58.9]} 3... g6 {[%clk 0:02:45.2]}
4. Bxc6 {[%clk 0:02:58.3]} 4... dxc6 {[%clk 0:02:42.9]} 5. d3 {[%clk 0:02:59.2]}
5... Nf6 {[%clk 0:02:41.5]} 6. f4 {[%clk 0:02:59.7]} 6... Bg7 {[%clk 0:02:37.2]}
7. Nf3 {[%clk 0:02:59.9]} 7... O-O {[%clk 0:02:32.4]} 8. O-O {[%clk 0:03:00.1]}
8... Qc7 {[%clk 0:02:25.7]} 9. Qe1 {[%clk 0:02:58.4]} 9... Bg4 {[%clk
0:02:20.7]} 10. Qh4 {[%clk 0:02:56.7]} 10... Bxf3 {[%clk 0:02:19]} 11. Rxf3
{[%clk 0:02:57.6]} 11... Rad8 {[%clk 0:02:04.9]} 12. f5 {[%clk 0:02:54.3]} 12...
Nd7 {[%clk 0:02:00.6]} 13. Rh3 {[%clk 0:01:54.7]} 13... h5 {[%clk 0:01:55.8]}
14. g4 {[%clk 0:01:52]} 14... Nf6 {[%clk 0:01:45.3]} 15. gxh5 {[%clk 0:01:34.6]}
15... Nxh5 {[%clk 0:01:44.6]} 16. Bg5 {[%clk 0:01:29.5]} 16... Qb6 {[%clk
0:01:34.2]} 17. Rf1 {[%clk 0:01:12.1]} 17... Qxb2 {[%clk 0:01:31.3]} 18. Ne2
{[%clk 0:00:52.5]} 18... Qxc2 {[%clk 0:01:20.6]} 19. Nf4 {[%clk 0:00:52.7]}
19... Bd4+ {[%clk 0:00:51.4]} 20. Kh1 {[%clk 0:00:51.6]} 20... Bg7 {[%clk
0:00:35.3]} 21. Nxh5 {[%clk 0:00:49.5]} 21... gxh5 {[%clk 0:00:35.6]} 22. Qxh5
{[%clk 0:00:50.4]} 22... f6 {[%clk 0:00:35.3]} 23. Qh7+ {[%clk 0:00:43.2]} 23...
Kf7 {[%clk 0:00:34.2]} 24. Qg6+ {[%clk 0:00:38.2]} 24... Kg8 {[%clk 0:00:33.5]}
25. Bh6 {[%clk 0:00:37.7]} 25... Rf7 {[%clk 0:00:31.7]} 26. Rg1 {[%clk
0:00:32.9]} 26... Kf8 {[%clk 0:00:28.4]} 27. Bxg7+ {[%clk 0:00:29.8]} 27... Ke8
{[%clk 0:00:29]} 28. Rh8+ {[%clk 0:00:28.3]} 28... Kd7 {[%clk 0:00:29.2]} 29.
Rxd8+ {[%clk 0:00:28.5]} 29... Kxd8 {[%clk 0:00:28.4]} 30. Qxf7 {[%clk
0:00:28.5]} 30... Qxd3 {[%clk 0:00:27.9]} 31. Qg6 {[%clk 0:00:21.8]} 31... Qxe4+
{[%clk 0:00:27.2]} 32. Qg2 {[%clk 0:00:22]} 32... Qxf5 {[%clk 0:00:26.3]} 33.
Bh6 {[%clk 0:00:19.6]} 33... Qd5 {[%clk 0:00:24.3]} 34. Qxd5+ {[%clk 0:00:10]}
34... cxd5 {[%clk 0:00:24.9]} 35. Rd1 {[%clk 0:00:10.5]} 35... d4 {[%clk
0:00:23.6]} 36. Bd2 {[%clk 0:00:09.7]} 36... e5 {[%clk 0:00:22.2]} 37. Kg2
{[%clk 0:00:10.6]} 37... e4 {[%clk 0:00:21.2]} 38. Kg3 {[%clk 0:00:10.2]} 38...
c4 {[%clk 0:00:20.2]} 39. Kf4 {[%clk 0:00:10.4]} 39... Kc7 {[%clk 0:00:17.5]}
40. Kxe4 {[%clk 0:00:10.4]} 40... c3 {[%clk 0:00:16.7]} 41. Bxc3 {[%clk
0:00:10.8]} 41... dxc3 {[%clk 0:00:15.7]} 42. Rc1 {[%clk 0:00:11.7]} 1-0

[Event "*** SCC Grand Prix: Titled Tuesday Blitz"]
[Site "Chess.com"]
[Date "2020.07.07"]
[Round "10"]
[White "bascheyaro"]
[Black "Legendinunknown"]
[Result "1-0"]
[WhiteElo "2691"]
[BlackElo "2558"]
[TimeControl "180+1"]
[EndTime "11:58:18 PDT"]
[Termination "bascheyaro won by resignation"]

1. d4 {[%clk 0:02:42.9]} 1... d5 {[%clk 0:02:58.4]} 2. c4 {[%clk 0:02:43.2]}
2... c6 {[%clk 0:02:58.3]} 3. Nc3 {[%clk 0:02:43.6]} 3... Nf6 {[%clk 0:02:57.8]}
4. Bg5 {[%clk 0:02:43.7]} 4... e6 {[%clk 0:02:56.1]} 5. e3 {[%clk 0:02:43.7]}
5... Be7 {[%clk 0:02:54.4]} 6. Nf3 {[%clk 0:02:43.6]} 6... O-O {[%clk
0:02:54.1]} 7. Bd3 {[%clk 0:02:43.1]} 7... h6 {[%clk 0:02:53.8]} 8. Bh4 {[%clk
0:02:42.6]} 8... Nbd7 {[%clk 0:02:53.1]} 9. O-O {[%clk 0:02:42.7]} 9... b6
{[%clk 0:02:53.2]} 10. cxd5 {[%clk 0:02:42.4]} 10... exd5 {[%clk 0:02:50.9]} 11.
a3 {[%clk 0:02:39.4]} 11... Bb7 {[%clk 0:02:49.5]} 12. b4 {[%clk 0:02:39.6]}
12... a5 {[%clk 0:02:46.5]} 13. Qb3 {[%clk 0:02:39.4]} 13... axb4 {[%clk
0:02:44.4]} 14. axb4 {[%clk 0:02:40.3]} 14... b5 {[%clk 0:02:44.8]} 15. Bf5
{[%clk 0:02:37.2]} 15... Nb6 {[%clk 0:02:43.8]} 16. Ne5 {[%clk 0:02:36.5]} 16...
Nc4 {[%clk 0:02:41.7]} 17. Rfc1 {[%clk 0:02:34.6]} 17... Qd6 {[%clk 0:02:34.3]}
18. Nd3 {[%clk 0:02:30.8]} 18... g6 {[%clk 0:02:31.4]} 19. Bg3 {[%clk
0:02:28.8]} 19... Qd8 {[%clk 0:02:30.6]} 20. Bh3 {[%clk 0:02:28.8]} 20... Nh5
{[%clk 0:02:28.7]} 21. Nc5 {[%clk 0:02:25.4]} 21... Nxg3 {[%clk 0:02:17.2]} 22.
hxg3 {[%clk 0:02:23.5]} 22... Rxa1 {[%clk 0:02:15.8]} 23. Rxa1 {[%clk
0:02:22.5]} 23... Bc8 {[%clk 0:02:15.9]} 24. Ra8 {[%clk 0:02:19.7]} 24... Qc7
{[%clk 0:02:15.1]} 25. Bxc8 {[%clk 0:02:07.3]} 25... Rxc8 {[%clk 0:02:09]} 26.
Ra6 {[%clk 0:02:06.7]} 26... Bxc5 {[%clk 0:02:03.8]} 27. bxc5 {[%clk 0:02:04.9]}
27... Qb7 {[%clk 0:02:03.9]} 28. Ra2 {[%clk 0:01:55.4]} 28... Ra8 {[%clk
0:02:02.8]} 29. Qb1 {[%clk 0:01:38.6]} 29... Rxa2 {[%clk 0:01:58.6]} 30. Nxa2
{[%clk 0:01:38.3]} 30... Qa8 {[%clk 0:01:57.2]} 31. Nb4 {[%clk 0:01:38.5]} 31...
Kf8 {[%clk 0:01:56.2]} 32. e4 {[%clk 0:01:21.2]} 32... Nd2 {[%clk 0:01:55.4]}
33. Qc1 {[%clk 0:01:21.6]} 33... Nxe4 {[%clk 0:01:53.7]} 34. Qxh6+ {[%clk
0:01:22.1]} 34... Kg8 {[%clk 0:01:53.3]} 35. Qf4 {[%clk 0:01:20.6]} 35... Qe8
{[%clk 0:01:44.8]} 36. Qe3 {[%clk 0:01:17]} 36... Qd7 {[%clk 0:01:44]} 37. f3
{[%clk 0:01:16.3]} 37... Nxg3 {[%clk 0:01:42.1]} 38. Qe5 {[%clk 0:01:05.9]}
38... Nf5 {[%clk 0:01:40.6]} 39. g4 {[%clk 0:01:06]} 39... Nh4 {[%clk
0:01:38.7]} 40. Kf2 {[%clk 0:01:05.6]} 40... Qc8 {[%clk 0:01:31.6]} 41. Kg3
{[%clk 0:01:03.5]} 41... Nxf3 {[%clk 0:01:28.3]} 42. Kxf3 {[%clk 0:01:03.1]}
42... Qa8 {[%clk 0:01:29.2]} 43. Qe3 {[%clk 0:00:56.9]} 43... Qc8 {[%clk
0:01:21.6]} 44. Kg3 {[%clk 0:00:54]} 44... Qb8+ {[%clk 0:01:19.1]} 45. Kh3
{[%clk 0:00:54.2]} 45... Qa8 {[%clk 0:01:19.6]} 46. Kh4 {[%clk 0:00:44.5]} 46...
Qd8+ {[%clk 0:01:15.6]} 47. Qg5 {[%clk 0:00:44.5]} 47... Qe8 {[%clk 0:01:14.9]}
48. Qe5 {[%clk 0:00:41.8]} 48... Qd8+ {[%clk 0:01:12.6]} 49. Kg3 {[%clk
0:00:41.6]} 49... Qa8 {[%clk 0:01:12.5]} 50. Kf4 {[%clk 0:00:20]} 50... Qc8
{[%clk 0:01:06.7]} 51. Kg5 {[%clk 0:00:19.6]} 51... Qa8 {[%clk 0:01:03.7]} 52.
Kh6 {[%clk 0:00:19.3]} 52... Qf8+ {[%clk 0:01:01.3]} 53. Kg5 {[%clk 0:00:19.8]}
53... Qa8 {[%clk 0:00:59.1]} 54. Kf6 {[%clk 0:00:16.8]} 54... Qa1 {[%clk
0:00:44.6]} 55. Qe8+ {[%clk 0:00:16.5]} 1-0

[Event "*** SCC Grand Prix: Titled Tuesday Blitz"]
[Site "Chess.com"]
[Date "2020.07.07"]
[Round "10"]
[White "ailime26"]
[Black "Klavdia_Nik"]
[Result "0-1"]
[WhiteElo "1857"]
[BlackElo "2057"]
[TimeControl "180+1"]
[EndTime "11:58:19 PDT"]
[Termination "Klavdia_Nik won by resignation"]

1. e4 {[%clk 0:03:00.9]} 1... c5 {[%clk 0:02:56]} 2. Nf3 {[%clk 0:02:59.2]} 2...
Nc6 {[%clk 0:02:56.4]} 3. d4 {[%clk 0:02:57.9]} 3... cxd4 {[%clk 0:02:55.5]} 4.
Nxd4 {[%clk 0:02:57.5]} 4... Nf6 {[%clk 0:02:51.3]} 5. Nc3 {[%clk 0:02:49.1]}
5... e5 {[%clk 0:02:51.3]} 6. Ndb5 {[%clk 0:02:47.2]} 6... d6 {[%clk 0:02:51.7]}
7. Bg5 {[%clk 0:02:42.2]} 7... a6 {[%clk 0:02:37.4]} 8. Na3 {[%clk 0:02:38.9]}
8... Be7 {[%clk 0:02:36.2]} 9. g3 {[%clk 0:01:47.7]} 9... O-O {[%clk 0:02:32.3]}
10. Bg2 {[%clk 0:01:42.1]} 10... b5 {[%clk 0:02:31.4]} 11. Bxf6 {[%clk 0:01:35]}
11... Bxf6 {[%clk 0:02:30.3]} 12. Nd5 {[%clk 0:01:31.7]} 12... Bg5 {[%clk
0:02:25.4]} 13. O-O {[%clk 0:01:28.5]} 13... Rb8 {[%clk 0:02:11.8]} 14. b3
{[%clk 0:01:22.8]} 14... f5 {[%clk 0:02:05]} 15. c4 {[%clk 0:00:27.2]} 15... Nd4
{[%clk 0:01:48.5]} 16. Nc2 {[%clk 0:00:22.2]} 16... Nxc2 {[%clk 0:01:34.8]} 17.
Qxc2 {[%clk 0:00:21.1]} 17... Be6 {[%clk 0:01:35]} 18. Rad1 {[%clk 0:00:17.7]}
18... Rc8 {[%clk 0:01:27.8]} 19. Qe2 {[%clk 0:00:15.3]} 19... bxc4 {[%clk
0:01:27.7]} 20. bxc4 {[%clk 0:00:14.5]} 20... Qa5 {[%clk 0:01:24.4]} 21. h4
{[%clk 0:00:12]} 21... Bd8 {[%clk 0:01:14.7]} 22. Ne3 {[%clk 0:00:10.3]} 22...
f4 {[%clk 0:01:10.2]} 23. gxf4 {[%clk 0:00:08.9]} 23... exf4 {[%clk 0:00:50.6]}
24. Rxd6 {[%clk 0:00:08.7]} 24... Qe5 {[%clk 0:00:42.6]} 25. Rd3 {[%clk
0:00:03.3]} 25... fxe3 {[%clk 0:00:41.6]} 26. Qxe3 {[%clk 0:00:02.5]} 26... Bxc4
{[%clk 0:00:33.3]} 27. Rd5 {[%clk 0:00:01.1]} 27... Bxd5 {[%clk 0:00:31.5]} 28.
exd5 {[%clk 0:00:01.2]} 28... Qxe3 {[%clk 0:00:32.1]} 29. fxe3 {[%clk
0:00:02.1]} 29... Rxf1+ {[%clk 0:00:31.1]} 30. Kxf1 {[%clk 0:00:03]} 30... Bxh4
{[%clk 0:00:30.8]} 31. Ke2 {[%clk 0:00:01.4]} 31... Bf6 {[%clk 0:00:29.9]} 32.
Kd3 {[%clk 0:00:01.6]} 32... Kf7 {[%clk 0:00:29.5]} 33. e4 {[%clk 0:00:01.8]}
33... Be5 {[%clk 0:00:28.9]} 34. Ke3 {[%clk 0:00:01.4]} 34... Ke7 {[%clk
0:00:28.9]} 35. Kf3 {[%clk 0:00:01.8]} 35... Rc3+ {[%clk 0:00:28.9]} 36. Kg4
{[%clk 0:00:02.1]} 36... Kf6 {[%clk 0:00:27.5]} 37. Bh3 {[%clk 0:00:02.1]} 37...
Rg3+ {[%clk 0:00:25.7]} 38. Kh4 {[%clk 0:00:02.5]} 38... g5+ {[%clk 0:00:25.8]}
39. Kh5 {[%clk 0:00:02.7]} 39... Rxh3+ {[%clk 0:00:26.4]} 40. Kg4 {[%clk
0:00:02.5]} 40... Rg3+ {[%clk 0:00:20.6]} 41. Kh5 {[%clk 0:00:02.2]} 0-1

[Event "*** SCC Grand Prix: Titled Tuesday Blitz"]
[Site "Chess.com"]
[Date "2020.07.07"]
[Round "10"]
[White "PawnEatingZombie"]
[Black "tamarozi99"]
[Result "0-1"]
[WhiteElo "2169"]
[BlackElo "2002"]
[TimeControl "180+1"]
[EndTime "11:58:21 PDT"]
[Termination "tamarozi99 won on time"]

1. d4 {[%clk 0:03:00.9]} 1... Nf6 {[%clk 0:02:56.9]} 2. c4 {[%clk 0:03:00.9]}
2... g6 {[%clk 0:02:56.6]} 3. Nc3 {[%clk 0:03:01.1]} 3... Bg7 {[%clk 0:02:56.3]}
4. e4 {[%clk 0:03:00.8]} 4... d6 {[%clk 0:02:56.4]} 5. Be2 {[%clk 0:02:59.7]}
5... O-O {[%clk 0:02:53.6]} 6. Be3 {[%clk 0:03:00.1]} 6... e5 {[%clk 0:02:51.2]}
7. d5 {[%clk 0:02:59.8]} 7... Nbd7 {[%clk 0:02:48.2]} 8. g4 {[%clk 0:02:58.5]}
8... Nc5 {[%clk 0:02:40.8]} 9. f3 {[%clk 0:02:56.2]} 9... a5 {[%clk 0:02:29.2]}
10. h4 {[%clk 0:02:54.3]} 10... c6 {[%clk 0:02:13.8]} 11. h5 {[%clk 0:02:51.6]}
11... cxd5 {[%clk 0:02:13.4]} 12. cxd5 {[%clk 0:02:50.5]} 12... a4 {[%clk
0:01:49.3]} 13. Nh3 {[%clk 0:02:48.3]} 13... gxh5 {[%clk 0:01:25.1]} 14. g5
{[%clk 0:02:41.1]} 14... Nfd7 {[%clk 0:01:09.9]} 15. Nf2 {[%clk 0:02:38.9]}
15... f5 {[%clk 0:01:07.7]} 16. gxf6 {[%clk 0:02:37.1]} 16... Nxf6 {[%clk
0:01:07]} 17. Qd2 {[%clk 0:02:35.9]} 17... Qa5 {[%clk 0:00:47.3]} 18. O-O-O
{[%clk 0:02:31]} 18... b5 {[%clk 0:00:30]} 19. Nxb5 {[%clk 0:02:19.9]} 19... Qb6
{[%clk 0:00:28]} 20. Kb1 {[%clk 0:02:16]} 20... Rb8 {[%clk 0:00:19.4]} 21. Rdg1
{[%clk 0:02:07.8]} 21... Ba6 {[%clk 0:00:18.6]} 22. Na3 {[%clk 0:01:28.7]} 22...
Bxe2 {[%clk 0:00:17.7]} 23. Qxe2 {[%clk 0:01:28.8]} 23... Qb4 {[%clk 0:00:16.1]}
24. Bc1 {[%clk 0:00:54.7]} 24... Qxa3 {[%clk 0:00:15.5]} 25. Rg2 {[%clk
0:00:26.6]} 25... Qb4 {[%clk 0:00:12.6]} 26. Rhg1 {[%clk 0:00:26.3]} 26... Rf7
{[%clk 0:00:12.8]} 27. Bh6 {[%clk 0:00:25]} 27... Rbb7 {[%clk 0:00:12]} 28. Nh3
{[%clk 0:00:18.3]} 28... Kf8 {[%clk 0:00:11.8]} 29. Bxg7+ {[%clk 0:00:16.9]}
29... Rxg7 {[%clk 0:00:11.8]} 30. Ng5 {[%clk 0:00:17.2]} 30... a3 {[%clk
0:00:09.9]} 31. b3 {[%clk 0:00:16.5]} 31... Qd4 {[%clk 0:00:08.1]} 32. Qa6
{[%clk 0:00:06.1]} 32... Qd3+ {[%clk 0:00:04.4]} 33. Ka1 {[%clk 0:00:05.4]}
33... Qc3+ {[%clk 0:00:03.8]} 34. Kb1 {[%clk 0:00:05.5]} 34... h6 {[%clk
0:00:03.2]} 35. Qa8+ {[%clk 0:00:04.5]} 35... Ke7 {[%clk 0:00:03.5]} 36. Ne6
{[%clk 0:00:03.5]} 36... Qd3+ {[%clk 0:00:03.9]} 37. Ka1 {[%clk 0:00:02.4]}
37... Qc3+ {[%clk 0:00:04.2]} 38. Kb1 {[%clk 0:00:02.7]} 38... Nxe6 {[%clk
0:00:04.3]} 0-1

[Event "*** SCC Grand Prix: Titled Tuesday Blitz"]
[Site "Chess.com"]
[Date "2020.07.07"]
[Round "10"]
[White "guillembaches"]
[Black "Shushik"]
[Result "1/2-1/2"]
[WhiteElo "2391"]
[BlackElo "2207"]
[TimeControl "180+1"]
[EndTime "11:58:23 PDT"]
[Termination "Game drawn - insufficient material"]

1. e4 {[%clk 0:03:00.9]} 1... e5 {[%clk 0:02:59.3]} 2. Nf3 {[%clk 0:03:01.1]}
2... Nc6 {[%clk 0:02:59.5]} 3. Nc3 {[%clk 0:03:01.7]} 3... g6 {[%clk 0:02:59.4]}
4. d4 {[%clk 0:03:02.2]} 4... exd4 {[%clk 0:02:59.5]} 5. Nxd4 {[%clk 0:03:02.5]}
5... Bg7 {[%clk 0:02:59.8]} 6. Be3 {[%clk 0:03:02.4]} 6... Nf6 {[%clk
0:02:58.9]} 7. f3 {[%clk 0:02:58.1]} 7... O-O {[%clk 0:02:58.2]} 8. Qd2 {[%clk
0:02:58.1]} 8... Re8 {[%clk 0:02:57.7]} 9. O-O-O {[%clk 0:02:57.6]} 9... d5
{[%clk 0:02:53.9]} 10. Bb5 {[%clk 0:02:46.8]} 10... Bd7 {[%clk 0:02:52.6]} 11.
exd5 {[%clk 0:02:44.5]} 11... Nxd4 {[%clk 0:02:46.6]} 12. Bxd4 {[%clk
0:02:43.7]} 12... Bxb5 {[%clk 0:02:45.2]} 13. Nxb5 {[%clk 0:02:43.7]} 13... Qxd5
{[%clk 0:02:40.9]} 14. Bxf6 {[%clk 0:02:32.7]} 14... Qxa2 {[%clk 0:02:36.1]} 15.
Qd4 {[%clk 0:02:05.7]} 15... Bxf6 {[%clk 0:02:32.6]} 16. Qxf6 {[%clk 0:02:03.6]}
16... Qa1+ {[%clk 0:02:32.3]} 17. Kd2 {[%clk 0:02:03]} 17... Rad8+ {[%clk
0:02:32.2]} 18. Kc3 {[%clk 0:02:03]} 18... Qa5+ {[%clk 0:02:25.5]} 19. Kc4
{[%clk 0:02:03]} 19... Qa4+ {[%clk 0:02:19.1]} 20. b4 {[%clk 0:01:42.8]} 20...
Rxd1 {[%clk 0:02:11.4]} 21. Rxd1 {[%clk 0:01:40.5]} 21... Qxc2+ {[%clk
0:02:10.4]} 22. Nc3 {[%clk 0:01:40.6]} 22... a6 {[%clk 0:01:54.9]} 23. Rd8
{[%clk 0:01:32]} 23... b5+ {[%clk 0:01:53.4]} 24. Kc5 {[%clk 0:01:27.4]} 24...
Rxd8 {[%clk 0:01:47.3]} 25. Qxd8+ {[%clk 0:01:27.1]} 25... Kg7 {[%clk
0:01:47.5]} 26. Qd4+ {[%clk 0:01:22.5]} 26... Kg8 {[%clk 0:01:38.1]} 27. g4
{[%clk 0:01:16.8]} 27... Qxh2 {[%clk 0:01:35]} 28. Ne4 {[%clk 0:01:07.5]} 28...
Qc2+ {[%clk 0:01:30.2]} 29. Qc3 {[%clk 0:01:04.7]} 29... Qxc3+ {[%clk
0:01:21.5]} 30. Nxc3 {[%clk 0:01:05.6]} 30... h5 {[%clk 0:01:21.7]} 31. gxh5
{[%clk 0:01:05.1]} 31... gxh5 {[%clk 0:01:21.9]} 32. Ne4 {[%clk 0:01:01.1]}
32... h4 {[%clk 0:01:20.8]} 33. Kc6 {[%clk 0:01:00.5]} 33... h3 {[%clk
0:01:17.8]} 34. Kxc7 {[%clk 0:00:59.9]} 34... h2 {[%clk 0:01:16.8]} 35. Nf2
{[%clk 0:00:59.9]} 35... Kg7 {[%clk 0:01:16.9]} 36. Kb6 {[%clk 0:01:00.1]} 36...
Kg6 {[%clk 0:01:17.1]} 37. Kxa6 {[%clk 0:01:00.4]} 37... Kf5 {[%clk 0:01:17.3]}
38. Kxb5 {[%clk 0:00:56.4]} 38... Kf4 {[%clk 0:01:17.1]} 39. Kc5 {[%clk
0:00:16.3]} 39... Kxf3 {[%clk 0:01:16.8]} 40. Nh1 {[%clk 0:00:16]} 40... Kg2
{[%clk 0:01:13.5]} 41. b5 {[%clk 0:00:16.2]} 41... Kxh1 {[%clk 0:01:13.4]} 42.
b6 {[%clk 0:00:16.6]} 42... Kg1 {[%clk 0:01:13.4]} 43. b7 {[%clk 0:00:16.9]}
43... h1=Q {[%clk 0:01:13.1]} 44. b8=Q {[%clk 0:00:17.3]} 44... Qh5+ {[%clk
0:01:12.8]} 45. Kd4 {[%clk 0:00:16.4]} 45... Qd1+ {[%clk 0:01:11.1]} 46. Ke4
{[%clk 0:00:14.5]} 46... Qe2+ {[%clk 0:01:09.1]} 47. Kf5 {[%clk 0:00:13.2]}
47... Qf3+ {[%clk 0:01:06.9]} 48. Kg5 {[%clk 0:00:13.3]} 48... f6+ {[%clk
0:01:04.5]} 49. Kg6 {[%clk 0:00:12.2]} 49... Kg2 {[%clk 0:00:56.2]} 50. Qb2+
{[%clk 0:00:11.5]} 50... Kg3 {[%clk 0:00:56.1]} 51. Qxf6 {[%clk 0:00:10.9]}
51... Qxf6+ {[%clk 0:00:56]} 52. Kxf6 {[%clk 0:00:11.1]} 1/2-1/2